bitfinex-derivatives/quotes_ETHF0:USTF0_20250926
["timestamp","ask_amount","ask_price","bid_price","bid_amount"]
[1758899305747,3.2078,3953.9,3953.8,0.3813]
[1758899305951,3.30315937,3953.9,3953.8,0.3813]
[1758899306155,3.2078,3953.9,3953.8,0.3813]
[1758899307054,1.13702,3955.2,3953.8,0.3813]
[1758899307055,3.2078,3954.3,3954.0,0.1603]
[1758899307252,3.5847,3954.7,3954.3,0.3813]
[1758899307446,0.09532361,3954.6,3954.3,0.3813]
[1758899307652,3.5847,3955.1,3954.4,0.3813]
[1758899307955,0.83174,3954.9,3954.5,0.6463]
[1758899308153,0.09532195,3954.8,3954.5,0.265]
[1758899308346,3.2078,3955.1,3955.0,0.3813]
[1758899308658,3.30311922,3955.1,3955.0,0.6463]
[1758899309055,0.09531922,3955.1,3955.0,0.6463]
[1758899309258,0.45476,3955.6,3955.1,0.3813]
[1758899309455,0.09531797,3955.5,3955.0,0.4253]
[1758899309754,0.09531797,3955.4,3955.1,0.3813]
[1758899309951,0.3769,3955.6,3955.4,0.83607]
[1758899310152,0.09531745,3955.5,3955.4,0.83607]
[1758899310352,0.09531745,3955.5,3955.4,0.6463]
[1758899311057,0.47221745,3955.5,3954.9,3.5891]
[1758899311258,0.83169,3955.3,3955.0,0.265]
[1758899311452,0.83169,3955.3,3955.1,0.3813]
[1758899311652,0.45481,3955.1,3954.9,3.2078]
[1758899311855,0.3769,3955.0,3954.9,3.2078]
[1758899312058,0.3769,3955.0,3954.9,3.4728]
[1758899312059,0.4720502,3955.0,3954.9,3.4728]
[1758899312458,0.0951502,3955.0,3954.9,3.8541]
[1758899313356,0.45475,3955.6,3955.0,0.1603]
[1758899313562,0.54992566,3955.5,3955.1,0.3813]
[1758899313755,0.09516566,3955.4,3955.0,0.1603]
[1758899314151,0.09516566,3955.4,3955.1,0.3813]
[1758899314360,0.09516566,3955.4,3955.0,0.1603]
[1758899314361,0.45478,3955.3,3955.2,0.265]
[1758899314654,0.45478,3955.3,3954.8,0.45484]
[1758899314655,0.3769,3954.9,3954.8,0.45484]
[1758899314853,0.45484,3954.9,3954.7,0.3813]
[1758899315062,0.45486,3954.7,3954.5,3.7494]
[1758899315362,0.45486,3954.7,3954.6,0.265]
[1758899315662,0.83176,3954.6,3954.5,3.66268]
[1758899315962,0.83176,3954.6,3954.5,3.4728]
[1758899316258,0.8318,3954.3,3954.2,0.45491]
[1758899316559,0.3769,3954.5,3954.4,0.45489]
[1758899316762,0.4549,3954.3,3954.2,0.265]
[1758899316958,0.8318,3954.3,3954.2,0.71991]
[1758899317157,0.3769,3954.1,3954.0,0.45493]
[1758899317357,0.3769,3954.1,3954.0,1.10123]
[1758899317558,0.4549,3954.3,3954.1,0.3673]
[1758899317758,0.45491,3954.2,3954.1,0.3673]
[1758899317958,0.45497,3953.7,3953.6,0.00321366]
[1758899318267,0.82237,3953.7,3953.6,0.26821366]
[1758899318757,0.09530231,3953.7,3953.6,1.09049366]
[1758899318950,0.45494,3954.0,3953.8,0.45495]
[1758899319149,0.45494,3954.0,3953.9,0.6323]
[1758899319359,1.07702925,3954.0,3953.9,0.265]
[1758899319560,0.46268925,3954.0,3953.9,0.265]
[1758899319864,0.09528925,3954.0,3953.9,0.6323]
[1758899321257,0.09528925,3954.0,3953.9,1.08725]
[1758899321660,3.66266,3954.7,3954.4,0.45488]
[1758899321963,0.55013596,3954.6,3954.5,0.6323]
[1758899322164,0.91753596,3954.6,3954.5,0.6323]
[1758899322661,0.82233,3954.0,3953.9,0.3673]
[1758899322966,0.82236,3953.8,3953.7,0.82226]
[1758899323165,0.91763596,3953.8,3953.7,1.08726]
[1758899323363,0.45494,3954.0,3953.9,0.45495]
[1758899323559,0.09526396,3954.0,3953.9,0.71993]
[1758899323758,0.09526396,3954.0,3953.9,0.265]
[1758899323759,0.55019396,3954.0,3953.9,0.265]
[1758899323955,0.45496,3953.8,3953.6,0.00321366]
[1758899324162,0.82237,3953.7,3953.6,0.00321366]
[1758899324364,0.91762907,3953.7,3953.6,0.26821366]
[1758899324663,0.91762907,3953.7,3953.6,0.00321366]
[1758899324864,0.09525907,3953.7,3953.6,1.09049366]
[1758899325159,0.55022907,3953.7,3953.6,0.63551366]
[1758899325364,0.91762907,3953.7,3953.6,0.72319366]
[1758899325565,0.46265907,3953.7,3953.6,0.72319366]
[1758899325761,0.09525907,3953.7,3953.6,1.09049366]
[1758899325963,0.55022907,3953.7,3953.6,1.09049366]
[1758899326160,0.09525907,3953.7,3953.6,1.09049366]
[1758899327666,0.55022907,3953.7,3953.6,1.09049366]
[1758899327969,0.09525907,3953.7,3953.6,1.09049366]
[1758899328368,0.91762907,3953.7,3953.6,0.63551366]
[1758899328568,0.91762907,3953.7,3953.6,0.26821366]
[1758899329471,0.91762907,3953.7,3953.6,0.00321366]
[1758899329667,0.91762907,3953.7,3953.6,0.26821366]
[1758899330259,0.91762907,3953.7,3953.6,0.00321366]
[1758899330463,9.12542907,3953.7,3953.6,0.00321366]
[1758899331572,0.45508,3952.7,3952.6,0.82239]
[1758899331765,0.82248,3952.7,3952.6,1.08739]
[1758899332363,0.3674,3952.7,3952.6,1.08739]
[1758899332576,0.82439005,3952.7,3952.6,0.00327304]
[1758899332871,0.82439005,3952.7,3952.6,0.72336304]
[1758899332872,0.46455183,3952.7,3952.6,0.72336304]
[1758899333165,0.46455183,3952.7,3952.6,0.63557304]
[1758899333364,0.91963183,3952.7,3952.6,0.00327304]
[1758899333765,0.91963183,3952.7,3952.6,0.26827304]
[1758899333966,0.91963183,3952.7,3952.6,0.00327304]
[1758899334170,5.91963183,3952.7,3952.6,0.26827304]
[1758899334362,0.45518,3951.9,3951.8,0.3673]
[1758899334566,0.82258,3951.9,3951.8,0.6323]
[1758899334770,0.82258,3951.9,3951.8,1.08749]
[1758899335069,0.8226,3951.7,3951.6,3.2078]
[1758899335270,0.8226,3951.7,3951.2,1.35965781]
[1758899335271,0.82263,3951.4,3951.2,3.2078]
[1758899335462,0.45522,3951.6,3951.3,0.45524]
[1758899335672,0.82263,3951.5,3951.3,1.08754]
[1758899335867,0.82263,3951.5,3951.4,0.3673]
[1758899336069,0.82264,3951.3,3951.2,0.37041601]
[1758899336270,0.3674,3951.3,3951.2,0.63541601]
[1758899336674,0.3674,3951.3,3951.2,0.26811601]
[1758899337372,0.3674,3951.3,3951.2,0.63541601]
[1758899337774,0.3674,3951.3,3951.2,0.37041601]
[1758899337976,0.3674,3951.3,3951.2,0.26811601]
[1758899338570,0.3674,3951.3,3951.2,0.00311601]
[1758899338784,0.3674,3951.3,3951.2,0.26811601]
[1758899339773,0.46220574,3951.3,3951.2,0.00311601]
[1758899339979,0.91744574,3951.3,3951.2,0.00311601]
[1758899340170,0.91745993,3951.3,3951.2,0.00311601]
[1758899340867,0.55005993,3951.3,3951.2,0.82567601]
[1758899341071,0.09481993,3951.3,3951.2,0.82567601]
[1758899341272,0.45524,3951.4,3951.3,0.45524]
[1758899341474,0.3674,3951.4,3951.3,0.45524]
[1758899341678,0.82263,3951.4,3951.3,0.45524]
[1758899342180,0.3674,3951.4,3951.3,0.82254]
[1758899342383,3.2078,3951.5,3951.4,0.45523]
[1758899342679,3.2078,3951.5,3951.4,0.82253]
[1758899342870,4.03042,3951.5,3951.2,0.00311601]
[1758899343074,0.82264,3951.3,3951.2,0.00311601]
[1758899343474,0.3674,3951.3,3951.2,0.72337601]
[1758899343671,0.3674,3951.3,3951.2,1.09067601]
[1758899343874,4.03042,3951.5,3951.3,0.45524]
[1758899344068,0.82264,3951.3,3951.2,0.26811601]
[1758899344570,0.82264,3951.3,3951.2,0.00311601]
[1758899345176,0.3674,3951.3,3951.2,0.00311601]
[1758899345378,3.66303,3951.5,3951.3,0.3835]
[1758899345680,3.2078,3951.5,3951.4,0.83873]
[1758899345880,0.45518,3951.9,3951.7,0.45519]
[1758899346083,0.45518,3951.9,3951.8,0.3835]
[1758899346276,0.94317524,3951.9,3951.8,0.3835]
[1758899346776,0.48799524,3951.9,3951.8,0.83869]
[1758899346975,4.05637,3952.0,3951.9,0.45518]
[1758899347186,4.05637,3952.0,3951.9,0.83868]
[1758899347374,0.45513,3952.3,3952.2,0.45514]
[1758899347576,0.09461434,3952.3,3952.2,1.07624]
[1758899347970,0.37871005,3952.7,3952.2,0.265]
[1758899348180,0.45700005,3952.7,3952.2,0.265]
[1758899348377,0.45700005,3952.7,3952.6,0.3561]
[1758899348580,0.55162601,3952.7,3952.6,0.3561]
[1758899349188,0.00191005,3952.7,3952.6,0.3561]
[1758899349478,0.3768,3952.5,3952.3,0.45513]
[1758899349683,0.3768,3952.5,3952.4,0.72012]
[1758899349880,0.83191,3952.5,3952.4,0.265]
[1758899350085,0.3768,3952.5,3952.4,0.3561]
[1758899350280,0.15,3952.5,3952.1,0.3561]
[1758899350583,0.98191,3952.5,3952.4,0.265]
[1758899350981,0.3768,3951.7,3951.5,3.66301]
[1758899351174,0.3768,3951.7,3951.6,0.6211]
[1758899351373,0.83201,3951.7,3951.5,3.66301]
[1758899351581,0.83201,3951.7,3951.6,0.265]
[1758899351779,0.83202,3951.5,3951.3,0.81133]
[1758899352085,0.83202,3951.5,3951.2,0.00311601]
[1758899352086,0.3768,3951.3,3951.2,0.45836601]
[1758899352284,0.3768,3951.4,3951.3,0.45524]
[1758899352484,0.3768,3951.4,3951.3,0.81134]
[1758899352686,0.45523,3951.4,3951.3,0.3561]
[1758899352880,0.4021,3951.6,3951.4,0.45523]
[1758899353087,0.4021,3951.6,3951.5,0.3561]
[1758899353585,0.4021,3951.6,3951.2,1.07946601]
[1758899353586,0.3768,3951.3,3951.2,1.07946601]
[1758899353779,0.3768,3951.3,3951.2,0.72336601]
[1758899353986,0.3768,3951.3,3951.2,0.00311601]
[1758899354186,0.3768,3951.3,3951.2,0.26811601]
[1758899354485,0.3768,3951.3,3950.0,0.20479658]
[1758899354486,0.15,3950.5,3950.0,0.20479658]
[1758899354688,0.15,3950.5,3949.1,3.2078]
[1758899354689,0.4555,3949.1,3948.9,1.71575781]
[1758899354881,0.4555,3949.1,3948.9,0.3561]
[1758899354882,0.3768,3949.1,3948.9,0.3561]
[1758899355186,0.47162104,3949.0,3948.9,0.6211]
[1758899355384,0.3768,3949.0,3948.9,0.6211]
[1758899355581,0.37961812,3949.0,3948.9,0.62427534]
[1758899355891,8.83214693,3949.0,3948.9,0.00317534]
[1758899356075,8.83214693,3949.0,3948.0,0.3561]
[1758899356076,0.45561,3948.2,3948.0,0.3561]
[1758899356278,0.15,3948.5,3948.2,0.3561]
[1758899356279,0.45557,3948.5,3948.2,0.3561]
[1758899356583,3.5846,3948.6,3948.2,0.3561]
[1758899356584,3.2078,3948.6,3948.2,0.3561]
[1758899356884,0.45554,3948.8,3948.6,0.3561]
[1758899357181,0.83238,3948.5,3948.1,0.4556]
[1758899357385,0.45559,3948.4,3948.2,0.6211]
[1758899357575,0.45559,3948.4,3948.3,0.3561]
[1758899357774,0.83239,3948.4,3948.3,0.3561]
[1758899357983,0.3768,3948.4,3948.3,0.3561]
[1758899358186,3.2078,3948.6,3948.5,0.3561]
[1758899358486,0.00281812,3949.0,3948.6,0.3561]
[1758899358682,0.3768,3948.9,3948.3,3.2078]
[1758899358888,0.83237,3948.5,3948.4,0.265]
[1758899359082,0.45554,3948.7,3948.4,0.6211]
[1758899359387,0.83239,3948.3,3948.1,0.35886546]
[1758899359575,0.3768,3948.2,3948.1,0.00276546]
[1758899359887,0.45559,3948.3,3948.1,0.00276546]
[1758899360075,0.83239,3948.3,3948.2,0.3561]
[1758899360277,3.2078,3948.7,3948.2,0.3561]
[1758899360478,0.45559,3948.4,3948.2,0.3561]
[1758899360682,0.83239,3948.4,3948.2,0.3561]
[1758899360877,0.45559,3948.4,3948.1,0.00276546]
[1758899361084,0.45557,3948.5,3948.2,0.3561]
[1758899361280,0.4556,3948.2,3948.1,0.00276546]
[1758899361486,0.8324,3948.2,3948.1,0.00276546]
[1758899361689,0.45559,3948.3,3948.2,0.3561]
[1758899362079,0.83239,3948.3,3948.1,0.00276546]
[1758899362282,0.3768,3948.2,3948.1,0.00276546]
[1758899362589,0.45557,3948.5,3948.1,0.45837546]
[1758899362789,0.45557,3948.5,3948.2,0.3561]
[1758899363086,0.45557,3948.5,3948.4,0.3561]
[1758899363288,0.45557,3948.5,3948.3,0.265]
[1758899363490,0.3768,3948.4,3948.3,0.265]
[1758899363689,0.45559,3948.3,3948.2,0.265]
[1758899363887,3.2078,3948.7,3948.2,0.265]
[1758899364081,0.45558,3948.4,3948.3,0.3561]
[1758899364277,0.45558,3948.4,3948.2,0.265]
[1758899364483,3.2078,3948.7,3948.1,0.00276546]
[1758899364484,0.8324,3948.2,3948.1,0.00276546]
[1758899364887,0.92678753,3948.2,3948.1,0.00276546]
[1758899365291,5.92678753,3948.2,3948.1,0.00276546]
[1758899366297,5.92678753,3948.2,3947.9,0.02533024]
[1758899366298,0.98242,3948.0,3947.9,0.02533024]
[1758899366588,0.24430339,3948.0,3946.9,3.2078]
[1758899366794,0.83254,3947.0,3946.9,3.4728]
[1758899367093,0.83254,3947.0,3946.9,3.47540484]
[1758899367790,0.3768,3947.0,3946.9,3.47540484]
[1758899368192,0.83252,3947.2,3946.9,3.47540484]
[1758899368386,0.45571,3947.3,3947.0,0.60094]
[1758899368698,3.2078,3947.9,3947.6,0.3561]
[1758899368993,3.66344,3947.9,3947.8,0.3561]
[1758899369182,4.04024,3947.9,3947.7,0.265]
[1758899369383,3.2078,3947.9,3947.0,0.1452]
[1758899369590,0.3768,3947.0,3946.9,0.00260484]
[1758899369784,0.3768,3947.0,3946.9,0.26760484]
[1758899370085,0.3768,3947.0,3946.9,0.00260484]
[1758899370286,0.3768,3947.0,3946.9,0.26760484]
[1758899371087,0.83254,3947.0,3946.9,0.26760484]
[1758899371594,0.0253,3947.1,3947.0,0.81184]
[1758899371798,0.0253,3947.1,3947.0,0.95704]
[1758899372686,0.3768,3948.0,3947.0,5.1452]
[1758899372891,0.45565,3947.8,3947.5,3.353]
[1758899373086,0.45563,3948.0,3947.9,0.45564]
[1758899373291,0.45564,3947.9,3947.6,0.265]
[1758899373699,0.45564,3947.9,3947.6,0.45566]
[1758899373892,0.83247,3947.6,3947.5,3.2078]
[1758899374200,1.13911,3947.9,3947.4,0.265]
[1758899374201,0.83248,3947.5,3947.4,0.265]
[1758899374389,0.83248,3947.5,3947.4,0.2642]
[1758899375189,0.15,3948.0,3947.4,0.6203]
[1758899375391,0.45567,3947.7,3947.6,0.3561]
[1758899375599,0.3768,3948.0,3947.8,0.3561]
[1758899375900,0.3768,3948.0,3947.4,0.2642]
[1758899375901,3.66341,3948.1,3948.0,0.3561]
[1758899376086,0.83242,3948.0,3947.9,0.265]
[1758899376286,0.83242,3948.0,3947.6,0.3561]
[1758899376287,0.45566,3947.7,3947.6,0.3561]
[1758899376594,0.83248,3947.5,3947.4,0.45569]
[1758899376796,0.83248,3947.5,3947.4,1.07679]
[1758899376996,0.3768,3947.9,3947.5,0.3561]
[1758899377298,3.2078,3948.2,3947.6,0.3561]
[1758899377595,3.2078,3948.2,3947.8,0.45565]
[1758899377900,0.45562,3948.0,3947.9,0.6437]
[1758899378194,0.365,3948.1,3948.0,0.3787]
[1758899378398,3.2078,3948.2,3948.1,0.83431]
[1758899378586,3.2078,3948.2,3947.3,0.4557]
[1758899378587,0.45564,3947.9,3947.3,0.4557]
[1758899378793,0.45568,3947.6,3947.5,0.3787]
[1758899378992,0.365,3947.8,3947.3,0.3787]
[1758899379193,0.82069,3947.5,3947.4,0.265]
[1758899379396,0.82069,3947.4,3947.3,0.3787]
[1758899379595,0.82069,3947.4,3947.3,0.6437]
[1758899379803,0.82069,3947.4,3947.3,1.09941]
[1758899379994,0.45573,3947.2,3946.9,0.00260484]
[1758899380194,0.45569,3947.5,3947.3,0.4557]
[1758899380504,0.45567,3947.6,3947.5,0.45568]
[1758899380693,0.45567,3947.6,3947.5,1.09938]
[1758899380993,0.45564,3947.9,3947.8,0.3787]
[1758899381203,0.82062,3948.1,3947.8,0.3787]
[1758899381397,0.09106962,3948.0,3947.9,0.45563]
[1758899381589,3.5981,3948.6,3948.2,0.4556]
[1758899381789,0.45559,3948.4,3948.3,0.6437]
[1758899381996,0.91167058,3948.4,3948.3,0.265]
[1758899382196,0.91167058,3948.4,3948.3,1.09929]
[1758899382501,0.09108058,3948.4,3948.3,1.09929]
[1758899383098,0.54666058,3948.4,3948.3,0.6437]
[1758899383297,0.91166058,3948.4,3948.3,0.6437]
[1758899383502,0.45608058,3948.4,3948.3,1.09929]
[1758899383696,0.54666058,3948.4,3948.3,1.09929]
[1758899383894,0.54666058,3948.4,3947.8,0.3787]
[1758899383895,0.45564,3947.9,3947.8,0.3787]
[1758899384094,0.365,3948.0,3947.8,0.6437]
[1758899384294,0.45658828,3947.9,3947.4,3.5865]
[1758899384491,0.60963082,3947.8,3947.3,0.4557]
[1758899384696,0.45568,3947.5,3947.4,0.265]
[1758899384902,0.09158828,3947.5,3947.1,0.3787]
[1758899385105,0.82071,3947.3,3947.2,0.265]
[1758899385296,0.91229828,3947.3,3947.2,0.265]
[1758899385498,0.82073,3947.1,3947.0,3.2078]
[1758899385709,0.91231828,3947.1,3946.9,0.00260484]
[1758899385895,0.45573,3947.1,3946.9,0.00260484]
[1758899386104,0.82083,3946.2,3946.1,0.3787]
[1758899386309,0.09162553,3946.2,3946.1,0.5537]
[1758899386605,0.09162553,3946.2,3946.1,5.5537]
[1758899387107,0.09445014,3946.2,3946.1,5.55619436]
[1758899388208,0.09445014,3946.2,3946.1,0.55619436]
[1758899389807,0.09445014,3946.2,3946.1,0.38119436]
[1758899389998,0.45945014,3946.2,3946.1,0.00249436]
[1758899390198,0.45945014,3946.2,3946.1,0.26749436]
[1758899390799,0.97730628,3946.2,3946.1,0.26749436]
[1758899391605,0.09445014,3946.2,3946.1,0.64619436]
[1758899392713,0.09445014,3946.2,3946.1,5.64619436]
[1758899392903,0.00282461,3946.2,3946.1,5.64619436]
[1758899393909,0.00282461,3946.2,3946.1,6.10203436]
[1758899394307,0.09431332,3946.2,3946.1,1.10203436]
[1758899395109,0.00282461,3946.2,3946.1,1.10203436]
[1758899397016,0.00282461,3946.2,3946.1,6.10203436]
[1758899398209,0.00282461,3946.2,3946.1,1.10203436]
[1758899398414,0.45865461,3946.2,3946.1,0.38119436]
[1758899398604,0.91512463,3946.2,3946.1,0.00249436]
[1758899398806,0.91512463,3946.2,3946.1,0.72333436]
[1758899399019,0.09429463,3946.2,3946.1,1.10203436]
[1758899400014,0.00282461,3946.2,3946.1,1.10203436]
[1758899400810,3.2078,3947.4,3947.3,0.45571]
[1758899401016,3.2078,3947.4,3947.3,1.09941]
[1758899401017,3.29925503,3947.4,3947.3,1.09941]
[1758899401206,3.75494503,3947.4,3947.3,0.6437]
[1758899401407,3.29925503,3947.4,3947.3,0.6437]
[1758899401703,0.09145503,3947.4,3947.3,1.09941]
[1758899401910,3.2078,3947.8,3947.7,0.45566]
[1758899402109,3.2078,3947.8,3947.7,0.6437]
[1758899402110,3.29977296,3947.8,3947.7,0.6437]
[1758899402403,3.29977296,3947.8,3947.2,3.2078]
[1758899402404,0.45571,3947.3,3947.2,3.2078]
[1758899402606,0.08894716,3947.3,3947.2,0.265]
[1758899402812,0.08894716,3947.3,3947.2,0.3787]
[1758899403110,0.54465716,3947.3,3947.2,0.265]
[1758899403306,5.90965716,3947.3,3947.2,0.265]
[1758899403506,0.08894716,3947.3,3947.2,0.6437]
[1758899403716,0.08894716,3947.3,3947.2,1.09942]
[1758899403912,0.45571,3947.3,3947.2,0.6437]
[1758899404214,3.21082266,3947.8,3947.7,0.83436]
[1758899404416,0.00302266,3947.8,3947.7,1.09936]
[1758899404612,0.00302266,3947.8,3947.7,6.09936]
[1758899405011,0.00302266,3947.8,3947.7,0.3787]
[1758899405316,0.82069,3947.5,3947.3,0.3787]
[1758899405519,0.82069,3947.5,3947.4,0.265]
[1758899405520,0.45569,3947.5,3947.4,0.265]
[1758899405718,0.45573,3947.1,3946.8,3.2078]
[1758899406015,0.45575,3946.9,3946.8,3.2078]
[1758899406225,0.82905,3946.9,3946.8,3.4728]
[1758899406607,0.45571,3947.3,3946.9,0.3486]
[1758899406820,0.08895317,3947.2,3947.0,0.60274]
[1758899407116,0.3733,3947.2,3947.1,0.265]
[1758899407416,0.46225305,3947.2,3947.1,0.265]
[1758899407817,0.90127305,3947.2,3947.1,0.265]
[1758899408014,0.90127305,3947.2,3946.4,3.5669]
[1758899408015,0.45579,3946.6,3946.4,3.5669]
[1758899408219,0.3566,3946.5,3946.4,3.2078]
[1758899408419,0.45579,3946.6,3946.1,0.00249436]
[1758899408420,0.81243,3946.2,3946.1,0.00249436]
[1758899408611,0.81243,3946.2,3946.1,0.26749436]
[1758899409118,0.90140647,3946.2,3946.1,0.26749436]
[1758899409420,0.81243,3946.2,3946.1,0.62659436]
[1758899409613,0.90140166,3946.2,3946.1,0.62659436]
[1758899409916,0.90140166,3946.2,3946.1,0.26749436]
[1758899410111,5.90140166,3946.2,3946.1,0.26749436]
[1758899410313,0.45594,3945.3,3945.2,0.3591]
[1758899410615,1.28437,3946.0,3945.4,0.45592]
[1758899410616,0.81248,3945.8,3945.4,0.45592]
[1758899410813,0.8125,3945.6,3945.5,0.265]
[1758899411015,0.81254,3945.3,3945.1,3.2078]
[1758899411221,0.3566,3945.2,3945.1,3.21039101]
[1758899411418,0.3566,3945.2,3945.1,3.47539101]
[1758899411614,0.3566,3945.7,3945.4,0.3591]
[1758899411814,0.08893989,3945.6,3945.5,0.265]
[1758899412013,0.45589,3945.7,3945.6,0.3591]
[1758899412219,3.2078,3945.8,3945.7,0.3591]
[1758899412416,3.5644,3946.4,3945.8,0.45587]
[1758899412620,3.3525,3946.0,3945.1,3.21039101]
[1758899412822,3.3525,3946.0,3945.4,0.45592]
[1758899412823,0.45589,3945.7,3945.4,0.45592]
[1758899413014,3.3525,3946.0,3945.2,0.45593]
[1758899413215,0.3566,3945.8,3945.5,0.6241]
[1758899413410,0.3566,3945.8,3945.7,0.3591]
[1758899413617,3.2078,3946.4,3945.7,0.3591]
[1758899413618,0.3566,3946.3,3945.7,0.81498]
[1758899413819,0.45586,3946.0,3945.8,0.6241]
[1758899414018,0.45585,3946.0,3945.9,0.3591]
[1758899414218,0.90142877,3946.0,3945.9,0.3591]
[1758899414527,0.44557877,3946.0,3945.9,0.3591]
[1758899414821,0.3566,3945.9,3945.8,0.265]
[1758899415018,0.3566,3945.6,3945.5,3.2078]
[1758899415218,0.3566,3945.6,3945.5,3.4728]
[1758899415414,0.60055,3946.0,3945.5,3.4728]
[1758899415610,0.08902086,3945.9,3945.8,0.3591]
[1758899415816,0.08901897,3945.9,3945.8,0.6241]
[1758899416022,0.44561897,3945.9,3945.8,0.6241]
[1758899416620,0.3566,3946.3,3945.9,0.3591]
[1758899416816,0.08901021,3946.2,3946.1,0.45584]
[1758899417122,0.08901021,3946.2,3946.1,0.72084]
[1758899417323,0.45578,3946.6,3946.3,0.81492]
[1758899417523,0.3566,3946.3,3946.1,0.265]
[1758899417825,0.45579,3946.6,3946.1,0.265]
[1758899417826,0.3566,3946.6,3946.4,0.3591]
[1758899418021,4.25389572,3946.5,3946.4,0.265]
[1758899418218,4.25389572,3946.5,3945.5,4.71145781]
[1758899418219,0.3566,3945.7,3945.6,0.4559]
[1758899418425,0.3566,3946.3,3945.6,0.6241]
[1758899418623,1.22859591,3946.2,3945.6,0.6241]
[1758899418827,0.3566,3945.7,3945.6,0.7209]
[1758899419019,0.81247,3945.8,3945.7,0.45588]
[1758899419221,1.13959,3946.2,3945.6,0.265]
[1758899419526,0.3566,3945.7,3945.6,0.6241]
[1758899419725,0.81248,3945.7,3945.6,0.265]
[1758899420429,0.8125,3945.6,3945.5,3.4728]
[1758899420626,0.3566,3945.6,3945.5,3.4728]
[1758899420924,0.8125,3945.6,3945.5,3.4728]
[1758899421526,0.90148218,3945.6,3945.5,3.4728]
[1758899421727,0.90148218,3945.6,3945.5,0.265]
[1758899422224,0.81255,3945.2,3945.1,0.00259101]
[1758899422626,0.90151534,3945.2,3945.1,0.00259101]
[1758899422824,4.10931534,3945.2,3945.1,0.00259101]
[1758899423631,8.65336534,3945.2,3944.0,0.3591]
[1758899423830,0.45612,3943.8,3943.6,0.45613]
[1758899424124,0.81272,3943.8,3943.7,0.265]
[1758899424723,0.35987188,3943.8,3943.7,0.00286434]
[1758899426124,5.35987188,3943.8,3943.7,0.00286434]
[1758899426524,5.81598188,3943.8,3943.7,0.00286434]
[1758899426928,5.35987188,3943.8,3943.7,0.00286434]
[1758899428024,5.62487188,3943.8,3943.7,0.00286434]
[1758899428227,5.71343746,3943.8,3943.7,0.00286434]
[1758899429141,0.45629,3942.3,3941.5,0.144]
[1758899429430,1.14058,3942.8,3941.5,0.265]
[1758899429431,0.45633,3941.9,3941.5,0.265]
[1758899429625,3.2078,3942.2,3941.5,0.265]
[1758899429932,0.3566,3942.0,3941.6,0.45636]
[1758899430127,0.45631,3942.1,3941.6,0.00257002]
[1758899430325,0.3566,3942.0,3941.6,0.00257002]
[1758899430531,0.45634,3941.8,3941.6,0.00257002]
[1758899430722,0.3566,3941.7,3941.6,0.00257002]
[1758899431119,5.6216,3941.7,3941.6,0.00257002]
[1758899431527,0.3566,3941.7,3941.6,0.00257002]
[1758899432936,0.3566,3941.7,3938.5,3.66452]
[1758899432937,11.41136,3940.9,3938.5,3.66452]
[1758899433130,0.3566,3939.3,3938.5,3.2078]
[1758899433430,0.3566,3939.3,3938.6,0.267]
[1758899433620,0.81324,3939.3,3938.6,0.267]
[1758899433828,0.3566,3939.2,3938.6,0.2693412]
[1758899434022,0.3566,3938.7,3938.6,0.0023412]
[1758899434222,0.3566,3938.4,3938.3,0.267]
[1758899434525,3.66454,3938.4,3938.0,0.3591]
[1758899434732,5.69787838,3939.0,3938.0,0.144]
[1758899434733,3.2078,3938.8,3938.0,0.144]
[1758899434929,3.2078,3938.8,3938.4,0.45673]
[1758899435232,3.2078,3938.8,3938.5,0.3591]
[1758899435434,3.5644,3939.2,3938.4,0.00302217]
[1758899435632,3.5644,3939.2,3938.5,0.5031]
[1758899436144,3.2078,3939.2,3939.0,0.81576]
[1758899436333,0.3566,3939.1,3938.4,0.00302217]
[1758899436532,0.3566,3939.1,3938.6,0.4567]
[1758899436838,3.2078,3938.8,3938.4,0.00302217]
[1758899437329,0.3566,3938.5,3938.4,0.00302217]
[1758899437929,3.2078,3938.8,3938.7,0.45669]
[1758899438136,3.2078,3938.8,3938.7,0.80389]
[1758899438637,0.375,3939.1,3938.9,0.45667]
[1758899438842,3.2078,3939.2,3939.1,0.45665]
[1758899439130,3.2078,3939.2,3939.1,0.80385]
[1758899439330,0.00290898,3939.3,3939.1,0.80385]
[1758899439534,0.00290898,3939.3,3939.2,0.3472]
[1758899439730,0.00290898,3939.3,3939.2,5.3472]
[1758899440137,3.2078,3939.7,3939.6,0.80379]
[1758899440342,3.2078,3939.7,3939.6,0.6152]
[1758899440739,3.2078,3940.2,3939.8,0.45656]
[1758899440938,3.2078,3940.2,3939.6,0.268]
[1758899440939,0.83156,3939.9,3939.6,0.268]
[1758899441136,0.375,3939.7,3939.6,0.268]
[1758899441440,0.00209101,3939.9,3939.7,0.3472]
[1758899441637,0.00209101,3939.9,3939.8,0.3472]
[1758899442037,0.00209101,3939.9,3939.8,5.3472]
[1758899443043,0.00209101,3939.9,3939.8,0.6152]
[1758899443341,0.00209101,3939.9,3939.8,5.6152]
[1758899444136,0.83157,3939.8,3939.6,0.3472]
[1758899444339,0.45659,3939.6,3939.4,0.3472]
[1758899444534,0.45659,3939.6,3939.5,0.268]
[1758899444839,0.83163,3939.3,3939.1,0.3472]
[1758899445043,0.375,3939.2,3939.0,3.555]
[1758899445230,0.375,3939.2,3939.1,0.268]
[1758899445541,0.375,3939.8,3939.1,1.07184]
[1758899445742,0.10655453,3939.7,3939.5,0.3472]
[1758899446043,0.45657,3939.8,3939.6,0.6152]
[1758899446245,0.10660645,3939.7,3939.6,1.07179]
[1758899446443,0.10660645,3939.7,3939.6,0.6152]
[1758899447040,0.00209101,3939.9,3939.7,0.45658]
[1758899447341,0.00209101,3939.9,3939.8,0.3472]
[1758899448244,0.00209101,3939.9,3939.8,0.6142]